[Event "Titled Tuesday Blitz July 05 Late 2022"]
[White "Ibarra Jerez, Jose Carlos"]
[Black "Dardha, Daniel"]
[WhiteFideId "2226332"]
[BlackFideId "240990"]
[WhiteElo "2628"]
[BlackElo "2482"]
[Result "1-0"]
[Round "07"]
[TimeControl "180+1"]
[Date "2022.07.05"]
[WhiteClock "0:00:09"]
[BlackClock "0:00:04"]

1. e4 {[%clk 0:02:56]}  c5 {[%clk 0:02:50]} 2. Nc3 {[%clk 0:02:55]}  Nc6 {[%clk 0:02:49]} 3. Nf3 {[%clk 0:02:56]}  g6 {[%clk 0:02:44]} 4. d4 {[%clk 0:02:56]}  cxd4 {[%clk 0:02:45]} 5. Nxd4 {[%clk 0:02:57]}  Bg7 {[%clk 0:02:45]} 6. Be3 {[%clk 0:02:57]}  Nf6 {[%clk 0:02:45]} 7. Bc4 {[%clk 0:02:58]}  Qa5 {[%clk 0:02:44]} 8. O-O {[%clk 0:02:58]}  O-O {[%clk 0:02:44]} 9. Bb3 {[%clk 0:02:58]}  d6 {[%clk 0:02:43]} 10. Nd5 {[%clk 0:02:58]}  Qd8 {[%clk 0:02:31]} 11. Nxf6+ {[%clk 0:02:58]}  Bxf6 {[%clk 0:02:30]} 12. c3 {[%clk 0:02:58]}  Bd7 {[%clk 0:02:29]} 13. f4 {[%clk 0:02:58]}  Bg7 {[%clk 0:02:26]} 14. Qf3 {[%clk 0:02:55]}  Qc8 {[%clk 0:02:16]} 15. f5 {[%clk 0:02:48]}  Na5 {[%clk 0:02:11]} 16. Bd5 {[%clk 0:02:40]}  e6 {[%clk 0:02:08]} 17. f6 {[%clk 0:02:35]}  Bh8 {[%clk 0:02:01]} 18. Bb3 {[%clk 0:02:34]}  Nxb3 {[%clk 0:01:46]} 19. axb3 {[%clk 0:02:33]}  e5 {[%clk 0:01:46]} 20. Nc2 {[%clk 0:02:05]}  Bc6 {[%clk 0:01:19]} 21. Nb4 {[%clk 0:01:58]}  Re8 {[%clk 0:01:19]} 22. Nd5 {[%clk 0:01:52]}  Bxd5 {[%clk 0:01:18]} 23. exd5 {[%clk 0:01:53]}  e4 {[%clk 0:01:18]} 24. Qg3 {[%clk 0:01:51]}  Re5 {[%clk 0:01:17]} 25. c4 {[%clk 0:01:50]}  Qd8 {[%clk 0:01:10]} 26. Rf4 {[%clk 0:00:54]}  Bxf6 {[%clk 0:00:53]} 27. Raf1 {[%clk 0:00:54]}  Bg7 {[%clk 0:00:46]} 28. Rxf7 {[%clk 0:00:52]}  Re7 {[%clk 0:00:42]} 29. R7f2 {[%clk 0:00:25]}  Qd7 {[%clk 0:00:32]} 30. h4 {[%clk 0:00:25]}  Rf8 {[%clk 0:00:19]} 31. Rxf8+ {[%clk 0:00:24]}  Bxf8 {[%clk 0:00:20]} 32. Bd4 {[%clk 0:00:24]}  Rf7 {[%clk 0:00:19]} 33. Rxf7 {[%clk 0:00:19]}  Qxf7 {[%clk 0:00:20]} 34. Qg4 {[%clk 0:00:17]}  Qf5 {[%clk 0:00:15]} 35. Qxf5 {[%clk 0:00:18]}  gxf5 {[%clk 0:00:16]} 36. Bxa7 {[%clk 0:00:18]}  Bg7 {[%clk 0:00:17]} 37. Bb8 {[%clk 0:00:17]}  Bd4+ {[%clk 0:00:07]} 38. Kf1 {[%clk 0:00:17]}  Bc5 {[%clk 0:00:07]} 39. Bc7 {[%clk 0:00:13]}  Kf7 {[%clk 0:00:06]} 40. Ba5 {[%clk 0:00:14]}  Kg6 {[%clk 0:00:05]} 41. b4 {[%clk 0:00:12]}  Bd4 {[%clk 0:00:06]} 42. Bc7 {[%clk 0:00:11]}  Bxb2 {[%clk 0:00:04]} 43. Bxd6 {[%clk 0:00:11]}  Ba3 {[%clk 0:00:03]} 44. Ke2 {[%clk 0:00:09]}  f4 {[%clk 0:00:03]} 45. Bxf4 {[%clk 0:00:08]}  Bxb4 {[%clk 0:00:03]} 46. g4 {[%clk 0:00:08]}  Kf7 {[%clk 0:00:03]} 47. Ke3 {[%clk 0:00:09]}  Be7 {[%clk 0:00:02]} 48. h5 {[%clk 0:00:08]}  Bc5+ {[%clk 0:00:02]} 49. Kxe4 {[%clk 0:00:08]}  Kf6 {[%clk 0:00:02]} 50. g5+ {[%clk 0:00:08]}  Kf7 {[%clk 0:00:03]} 51. Kf5 {[%clk 0:00:09]}  Ke7 {[%clk 0:00:03]} 52. g6 {[%clk 0:00:09]}  hxg6+ {[%clk 0:00:04]} 53. Kxg6 {[%clk 0:00:09]}  Bd4 {[%clk 0:00:04]} 54. h6 {[%clk 0:00:09]}  b5 {[%clk 0:00:05]} 55. cxb5 {[%clk 0:00:09]}  Kf8 {[%clk 0:00:04]} 56. h7 {[%clk 0:00:09]}  Ke8 {[%clk 0:00:04]} 57. Bh6 {[%clk 0:00:09]} 1-0


[Site "https://www.chess.com"]

[Event "Titled Tuesday Blitz July 05 Late 2022"]
[White "Jaracz, Pawel"]
[Black "Taboas Rodriguez, Daniel"]
[WhiteFideId "1102222"]
[BlackFideId "2208466"]
[WhiteElo "2459"]
[BlackElo "2429"]
[Result "1-0"]
[Round "07"]
[TimeControl "180+1"]
[Date "2022.07.05"]
[WhiteClock "0:01:40"]
[BlackClock "0:00:01"]

1. d4 {[%clk 0:03:00]}  Nf6 {[%clk 0:02:58]} 2. c4 {[%clk 0:03:01]}  g6 {[%clk 0:02:58]} 3. Nc3 {[%clk 0:03:00]}  Bg7 {[%clk 0:02:58]} 4. e4 {[%clk 0:03:01]}  d6 {[%clk 0:02:58]} 5. f3 {[%clk 0:03:01]}  O-O {[%clk 0:02:57]} 6. Bg5 {[%clk 0:03:01]}  c5 {[%clk 0:02:57]} 7. d5 {[%clk 0:03:01]}  e6 {[%clk 0:02:58]} 8. Qd2 {[%clk 0:02:59]}  exd5 {[%clk 0:02:58]} 9. cxd5 {[%clk 0:03:00]}  a6 {[%clk 0:02:58]} 10. a4 {[%clk 0:02:59]}  Nbd7 {[%clk 0:02:52]} 11. Nh3 {[%clk 0:02:59]}  Ne5 {[%clk 0:02:52]} 12. Nf2 {[%clk 0:02:59]}  Qc7 {[%clk 0:02:34]} 13. Be2 {[%clk 0:02:58]}  Bd7 {[%clk 0:02:30]} 14. O-O {[%clk 0:02:57]}  b5 {[%clk 0:02:30]} 15. axb5 {[%clk 0:02:56]}  axb5 {[%clk 0:02:31]} 16. Nxb5 {[%clk 0:02:55]}  Qb6 {[%clk 0:02:26]} 17. Rxa8 {[%clk 0:02:42]}  Rxa8 {[%clk 0:02:27]} 18. Na3 {[%clk 0:02:42]}  Rb8 {[%clk 0:02:14]} 19. f4 {[%clk 0:02:38]}  Neg4 {[%clk 0:02:11]} 20. Nc4 {[%clk 0:02:23]}  Qc7 {[%clk 0:01:11]} 21. Nxg4 {[%clk 0:02:18]}  Nxg4 {[%clk 0:01:09]} 22. e5 {[%clk 0:02:12]}  dxe5 {[%clk 0:01:05]} 23. h3 {[%clk 0:02:12]}  Nf6 {[%clk 0:00:38]} 24. d6 {[%clk 0:02:10]}  Qa7 {[%clk 0:00:15]} 25. Bxf6 {[%clk 0:02:08]}  Bxf6 {[%clk 0:00:14]} 26. fxe5 {[%clk 0:02:09]}  Bg7 {[%clk 0:00:14]} 27. Bf3 {[%clk 0:02:08]}  Be6 {[%clk 0:00:14]} 28. Bd5 {[%clk 0:02:08]}  Qd7 {[%clk 0:00:11]} 29. Qd3 {[%clk 0:02:00]}  Rb4 {[%clk 0:00:07]} 30. Rd1 {[%clk 0:01:58]}  h5 {[%clk 0:00:06]} 31. Bxe6 {[%clk 0:01:48]}  fxe6 {[%clk 0:00:06]} 32. b3 {[%clk 0:01:43]}  Kh7 {[%clk 0:00:06]} 33. Rf1 {[%clk 0:01:40]}  Bh6 {[%clk 0:00:01]} 34. Rf6 {[%clk 0:01:40]} 1-0


[Site "https://www.chess.com"]

[Event "Titled Tuesday Blitz July 05 Late 2022"]
[White "Korchmar, Vasiliy"]
[Black "Pakleza, Zbigniew"]
[WhiteFideId "24131750"]
[BlackFideId "1119290"]
[WhiteElo "2370"]
[BlackElo "2467"]
[Result "0-1"]
[Round "07"]
[TimeControl "180+1"]
[Date "2022.07.05"]
[WhiteClock "0:00:01"]
[BlackClock "0:00:06"]

1. e4 {[%clk 0:03:00]}  d6 {[%clk 0:03:00]} 2. d4 {[%clk 0:03:00]}  Nf6 {[%clk 0:03:00]} 3. Bd3 {[%clk 0:02:58]}  e5 {[%clk 0:03:00]} 4. c3 {[%clk 0:02:57]}  d5 {[%clk 0:02:57]} 5. dxe5 {[%clk 0:02:49]}  dxe4 {[%clk 0:02:54]} 6. Bb5+ {[%clk 0:02:22]}  c6 {[%clk 0:02:54]} 7. Qxd8+ {[%clk 0:02:19]}  Kxd8 {[%clk 0:02:54]} 8. Bc4 {[%clk 0:02:06]}  Ng4 {[%clk 0:02:46]} 9. Bf4 {[%clk 0:01:38]}  Nd7 {[%clk 0:02:40]} 10. e6 {[%clk 0:01:28]}  Nb6 {[%clk 0:01:45]} 11. Bb3 {[%clk 0:01:19]}  Bxe6 {[%clk 0:01:45]} 12. Bxe6 {[%clk 0:01:19]}  fxe6 {[%clk 0:01:46]} 13. Nd2 {[%clk 0:01:18]}  Nf6 {[%clk 0:01:15]} 14. O-O-O {[%clk 0:01:18]}  Nbd5 {[%clk 0:01:10]} 15. Be5 {[%clk 0:01:13]}  e3 {[%clk 0:00:56]} 16. fxe3 {[%clk 0:00:41]}  Nxe3 {[%clk 0:00:55]} 17. Re1 {[%clk 0:00:41]}  Nxg2 {[%clk 0:00:28]} 18. Re2 {[%clk 0:00:42]}  Nh4 {[%clk 0:00:24]} 19. Nh3 {[%clk 0:00:43]}  Kc8 {[%clk 0:00:12]} 20. Ng5 {[%clk 0:00:40]}  Ng6 {[%clk 0:00:11]} 21. Bg3 {[%clk 0:00:35]}  e5 {[%clk 0:00:09]} 22. Nc4 {[%clk 0:00:34]}  b5 {[%clk 0:00:07]} 23. Nxe5 {[%clk 0:00:33]}  Nxe5 {[%clk 0:00:07]} 24. Bxe5 {[%clk 0:00:34]}  Bc5 {[%clk 0:00:07]} 25. Ne6 {[%clk 0:00:26]}  Be7 {[%clk 0:00:07]} 26. Nxg7 {[%clk 0:00:20]}  Rg8 {[%clk 0:00:07]} 27. Nf5 {[%clk 0:00:20]}  Bd8 {[%clk 0:00:08]} 28. Nd6+ {[%clk 0:00:19]}  Kd7 {[%clk 0:00:08]} 29. Bxf6 {[%clk 0:00:08]}  Bxf6 {[%clk 0:00:09]} 30. Rd1 {[%clk 0:00:08]}  Kc7 {[%clk 0:00:08]} 31. Ne4 {[%clk 0:00:02]}  Be5 {[%clk 0:00:06]} 32. Nc5 {[%clk 0:00:02]}  Bf4+ {[%clk 0:00:06]} 33. Kc2 {[%clk 0:00:02]}  Rae8 {[%clk 0:00:07]} 34. Ne6+ {[%clk 0:00:02]}  Rxe6 {[%clk 0:00:07]} 35. Rxe6 {[%clk 0:00:02]}  Rg2+ {[%clk 0:00:07]} 36. Kb3 {[%clk 0:00:02]}  Rxh2 {[%clk 0:00:07]} 37. Re7+ {[%clk 0:00:02]}  Kb6 {[%clk 0:00:07]} 38. Rdd7 {[%clk 0:00:03]}  a5 {[%clk 0:00:07]} 39. Rb7+ {[%clk 0:00:02]}  Kc5 {[%clk 0:00:06]} 40. Rf7 {[%clk 0:00:01]}  a4+ {[%clk 0:00:05]} 41. Ka3 {[%clk 0:00:01]}  Bc1 {[%clk 0:00:06]} 42. Rf5+ {[%clk 0:00:01]}  Kd6 {[%clk 0:00:06]} 0-1


[Site "https://www.chess.com"]

[Event "Titled Tuesday Blitz July 05 Late 2022"]
[White "Kosteniuk, Alexandra"]
[Black "Ezat, Mohamed"]
[WhiteFideId "4128125"]
[BlackFideId "10600906"]
[WhiteElo "2469"]
[BlackElo "2386"]
[Result "1/2-1/2"]
[Round "07"]
[TimeControl "180+1"]
[Date "2022.07.05"]
[WhiteClock "0:00:11"]
[BlackClock "0:00:10"]

1. e4 {[%clk 0:03:00]}  c6 {[%clk 0:02:56]} 2. Nc3 {[%clk 0:03:00]}  d5 {[%clk 0:02:55]} 3. Nf3 {[%clk 0:03:01]}  Bg4 {[%clk 0:02:54]} 4. h3 {[%clk 0:02:57]}  Bh5 {[%clk 0:02:55]} 5. exd5 {[%clk 0:02:51]}  cxd5 {[%clk 0:02:54]} 6. g4 {[%clk 0:02:51]}  Bg6 {[%clk 0:02:53]} 7. Ne5 {[%clk 0:02:50]}  Nc6 {[%clk 0:02:53]} 8. Bb5 {[%clk 0:02:47]}  Rc8 {[%clk 0:02:52]} 9. d4 {[%clk 0:02:47]}  e6 {[%clk 0:02:51]} 10. Qe2 {[%clk 0:02:44]}  Bb4 {[%clk 0:02:51]} 11. f4 {[%clk 0:02:40]}  Be4 {[%clk 0:02:44]} 12. O-O {[%clk 0:02:39]}  Bxc3 {[%clk 0:02:34]} 13. bxc3 {[%clk 0:02:40]}  Qh4 {[%clk 0:02:31]} 14. Qe3 {[%clk 0:02:31]}  Ne7 {[%clk 0:02:29]} 15. Ba3 {[%clk 0:02:30]}  f6 {[%clk 0:02:16]} 16. Bxe7 {[%clk 0:02:23]}  Kxe7 {[%clk 0:02:12]} 17. Nd3 {[%clk 0:02:19]}  a6 {[%clk 0:01:36]} 18. Bxc6 {[%clk 0:02:15]}  Rxc6 {[%clk 0:01:35]} 19. Nc5 {[%clk 0:02:15]}  f5 {[%clk 0:01:27]} 20. Rae1 {[%clk 0:01:12]}  Rhc8 {[%clk 0:01:25]} 21. Kh2 {[%clk 0:01:00]}  b6 {[%clk 0:01:24]} 22. Nxe4 {[%clk 0:00:50]}  dxe4 {[%clk 0:01:20]} 23. c4 {[%clk 0:00:36]}  Rxc4 {[%clk 0:01:19]} 24. Qa3+ {[%clk 0:00:36]}  Kf7 {[%clk 0:01:14]} 25. gxf5 {[%clk 0:00:36]}  exf5 {[%clk 0:01:10]} 26. Re3 {[%clk 0:00:32]}  Rxc2+ {[%clk 0:00:57]} 27. Kh1 {[%clk 0:00:33]}  Qe7 {[%clk 0:00:42]} 28. Qxa6 {[%clk 0:00:28]}  Rc1 {[%clk 0:00:37]} 29. Rxc1 {[%clk 0:00:21]}  Rxc1+ {[%clk 0:00:30]} 30. Kg2 {[%clk 0:00:22]}  Rc2+ {[%clk 0:00:21]} 31. Re2 {[%clk 0:00:22]}  Rxe2+ {[%clk 0:00:21]} 32. Qxe2 {[%clk 0:00:22]}  Qb4 {[%clk 0:00:21]} 33. d5 {[%clk 0:00:17]}  Qd4 {[%clk 0:00:20]} 34. Qb5 {[%clk 0:00:16]}  e3 {[%clk 0:00:19]} 35. Qd7+ {[%clk 0:00:16]}  Kf8 {[%clk 0:00:14]} 36. Qxf5+ {[%clk 0:00:16]}  Ke8 {[%clk 0:00:15]} 37. Qe6+ {[%clk 0:00:16]}  Kf8 {[%clk 0:00:14]} 38. d6 {[%clk 0:00:13]}  Qd2+ {[%clk 0:00:14]} 39. Kf3 {[%clk 0:00:12]}  Qd1+ {[%clk 0:00:14]} 40. Kg2 {[%clk 0:00:10]}  Qe2+ {[%clk 0:00:14]} 41. Kg3 {[%clk 0:00:09]}  Qf2+ {[%clk 0:00:14]} 42. Kg4 {[%clk 0:00:09]}  Qg2+ {[%clk 0:00:12]} 43. Kh4 {[%clk 0:00:10]}  Qf2+ {[%clk 0:00:11]} 44. Kg4 {[%clk 0:00:11]}  Qg2+ {[%clk 0:00:10]} 45. Kh4 {[%clk 0:00:10]}  Qf2+ {[%clk 0:00:10]} 46. Kg4 {[%clk 0:00:11]} 1/2-1/2


[Site "https://www.chess.com"]

[Event "Titled Tuesday Blitz July 05 Late 2022"]
[White "Lashkin, Jegor"]
[Black "Salem, A.R. Saleh"]
[WhiteFideId "13907808"]
[BlackFideId "9301348"]
[WhiteElo "2368"]
[BlackElo "2679"]
[Result "0-1"]
[Round "07"]
[TimeControl "180+1"]
[Date "2022.07.05"]
[WhiteClock "0:00:59"]
[BlackClock "0:01:39"]

1. d4 {[%clk 0:03:00]}  Nf6 {[%clk 0:02:59]} 2. c4 {[%clk 0:03:01]}  g6 {[%clk 0:03:00]} 3. Nc3 {[%clk 0:03:00]}  Bg7 {[%clk 0:03:00]} 4. e4 {[%clk 0:03:01]}  O-O {[%clk 0:03:01]} 5. Nf3 {[%clk 0:03:01]}  d6 {[%clk 0:03:02]} 6. Be3 {[%clk 0:02:59]}  e5 {[%clk 0:03:00]} 7. dxe5 {[%clk 0:02:59]}  dxe5 {[%clk 0:02:44]} 8. Qc2 {[%clk 0:02:59]}  Na6 {[%clk 0:02:37]} 9. Rd1 {[%clk 0:02:58]}  Qe8 {[%clk 0:02:34]} 10. Be2 {[%clk 0:02:44]}  c6 {[%clk 0:02:34]} 11. O-O {[%clk 0:02:42]}  Qe7 {[%clk 0:02:34]} 12. a3 {[%clk 0:02:38]}  Ng4 {[%clk 0:02:32]} 13. Bg5 {[%clk 0:02:36]}  f6 {[%clk 0:02:32]} 14. Bc1 {[%clk 0:02:30]}  Nc7 {[%clk 0:02:24]} 15. h3 {[%clk 0:02:29]}  Nh6 {[%clk 0:02:24]} 16. Be3 {[%clk 0:02:23]}  Nf7 {[%clk 0:02:20]} 17. Qc1 {[%clk 0:02:07]}  Ne6 {[%clk 0:02:14]} 18. b4 {[%clk 0:02:05]}  f5 {[%clk 0:02:14]} 19. c5 {[%clk 0:02:00]}  f4 {[%clk 0:02:13]} 20. Bd2 {[%clk 0:02:00]}  g5 {[%clk 0:02:06]} 21. Na4 {[%clk 0:01:50]}  h5 {[%clk 0:02:02]} 22. Nh2 {[%clk 0:01:46]}  g4 {[%clk 0:02:02]} 23. hxg4 {[%clk 0:01:45]}  Nd4 {[%clk 0:02:03]} 24. Qc4 {[%clk 0:01:22]}  b5 {[%clk 0:01:56]} 25. cxb6 {[%clk 0:01:20]}  axb6 {[%clk 0:01:57]} 26. Nc3 {[%clk 0:01:03]}  Ba6 {[%clk 0:01:44]} 27. b5 {[%clk 0:01:02]}  Bxb5 {[%clk 0:01:38]} 28. Nxb5 {[%clk 0:00:59]}  cxb5 {[%clk 0:01:39]} 0-1


[Site "https://www.chess.com"]

[Event "Titled Tuesday Blitz July 05 Late 2022"]
[White "Martin Carmona, Gaston Manuel"]
[Black "Cardoso Cardoso, Jose Gabriel"]
[WhiteFideId "22284567"]
[BlackFideId "4430492"]
[WhiteElo "2162"]
[BlackElo "2485"]
[Result "0-1"]
[Round "07"]
[TimeControl "180+1"]
[Date "2022.07.05"]
[WhiteClock "0:00:05"]
[BlackClock "0:00:06"]

1. e4 {[%clk 0:03:00]}  g6 {[%clk 0:02:50]} 2. d4 {[%clk 0:02:59]}  Bg7 {[%clk 0:02:51]} 3. c3 {[%clk 0:02:56]}  c6 {[%clk 0:02:51]} 4. Nf3 {[%clk 0:02:56]}  d5 {[%clk 0:02:51]} 5. Nbd2 {[%clk 0:02:56]}  dxe4 {[%clk 0:02:50]} 6. Nxe4 {[%clk 0:02:57]}  Nf6 {[%clk 0:02:50]} 7. Nxf6+ {[%clk 0:02:57]}  exf6 {[%clk 0:02:50]} 8. Bc4 {[%clk 0:02:56]}  O-O {[%clk 0:02:51]} 9. O-O {[%clk 0:02:56]}  Nd7 {[%clk 0:02:51]} 10. a4 {[%clk 0:02:55]}  a5 {[%clk 0:02:50]} 11. Bb3 {[%clk 0:02:55]}  Nb6 {[%clk 0:02:50]} 12. h3 {[%clk 0:02:55]}  Nd5 {[%clk 0:02:50]} 13. Re1 {[%clk 0:02:55]}  Be6 {[%clk 0:02:50]} 14. Bc2 {[%clk 0:02:51]}  Qd7 {[%clk 0:02:48]} 15. Bd2 {[%clk 0:02:44]}  Rfe8 {[%clk 0:02:46]} 16. Qc1 {[%clk 0:02:42]}  Bf5 {[%clk 0:02:44]} 17. Bb3 {[%clk 0:02:35]}  Be4 {[%clk 0:02:43]} 18. Bd1 {[%clk 0:02:34]}  Re7 {[%clk 0:02:39]} 19. Bh6 {[%clk 0:02:26]}  Bh8 {[%clk 0:02:36]} 20. Qd2 {[%clk 0:02:26]}  Rae8 {[%clk 0:02:36]} 21. Nh2 {[%clk 0:02:04]}  Qd6 {[%clk 0:01:09]} 22. Bf3 {[%clk 0:01:54]}  f5 {[%clk 0:00:59]} 23. Bg5 {[%clk 0:01:43]}  Re6 {[%clk 0:00:56]} 24. Bxe4 {[%clk 0:01:41]}  fxe4 {[%clk 0:00:56]} 25. Rad1 {[%clk 0:01:25]}  f5 {[%clk 0:00:55]} 26. c4 {[%clk 0:01:22]}  Nb4 {[%clk 0:00:53]} 27. d5 {[%clk 0:01:23]}  cxd5 {[%clk 0:00:50]} 28. cxd5 {[%clk 0:01:23]}  Re5 {[%clk 0:00:45]} 29. Bf4 {[%clk 0:01:24]}  Nd3 {[%clk 0:00:45]} 30. Bxe5 {[%clk 0:01:24]}  Bxe5 {[%clk 0:00:45]} 31. Nf1 {[%clk 0:01:08]}  Nxe1 {[%clk 0:00:43]} 32. Rxe1 {[%clk 0:01:08]}  Rd8 {[%clk 0:00:37]} 33. Rd1 {[%clk 0:01:06]}  Qc5 {[%clk 0:00:34]} 34. b3 {[%clk 0:01:01]}  Qc3 {[%clk 0:00:28]} 35. Qxc3 {[%clk 0:01:00]}  Bxc3 {[%clk 0:00:28]} 36. Ne3 {[%clk 0:01:01]}  Kf7 {[%clk 0:00:26]} 37. Nc4 {[%clk 0:01:01]}  Kf6 {[%clk 0:00:25]} 38. Kf1 {[%clk 0:00:58]}  f4 {[%clk 0:00:25]} 39. Ke2 {[%clk 0:00:58]}  Kf5 {[%clk 0:00:24]} 40. Rc1 {[%clk 0:00:48]}  Bb4 {[%clk 0:00:23]} 41. Rd1 {[%clk 0:00:49]}  g5 {[%clk 0:00:21]} 42. g4+ {[%clk 0:00:44]}  Kf6 {[%clk 0:00:20]} 43. Rd4 {[%clk 0:00:43]}  Re8 {[%clk 0:00:19]} 44. d6 {[%clk 0:00:34]}  f3+ {[%clk 0:00:12]} 45. Kf1 {[%clk 0:00:30]}  Rd8 {[%clk 0:00:08]} 46. d7 {[%clk 0:00:11]}  Bc5 {[%clk 0:00:05]} 47. Rd5 {[%clk 0:00:09]}  b6 {[%clk 0:00:05]} 48. Nxb6 {[%clk 0:00:07]}  Bxb6 {[%clk 0:00:05]} 49. Rd6+ {[%clk 0:00:07]}  Ke5 {[%clk 0:00:06]} 50. Rxb6 {[%clk 0:00:08]}  Rxd7 {[%clk 0:00:06]} 51. Ke1 {[%clk 0:00:08]}  Kf4 {[%clk 0:00:03]} 52. Rb5 {[%clk 0:00:08]}  e3 {[%clk 0:00:03]} 53. Rf5+ {[%clk 0:00:09]}  Ke4 {[%clk 0:00:04]} 54. fxe3 {[%clk 0:00:09]}  Kxe3 {[%clk 0:00:04]} 55. Re5+ {[%clk 0:00:09]}  Kf4 {[%clk 0:00:05]} 56. Rxa5 {[%clk 0:00:09]}  Kg3 {[%clk 0:00:05]} 57. Rf5 {[%clk 0:00:05]}  Kg2 {[%clk 0:00:05]} 58. a5 {[%clk 0:00:04]}  Rd4 {[%clk 0:00:04]} 59. a6 {[%clk 0:00:04]}  Rf4 {[%clk 0:00:04]} 60. Rxf4 {[%clk 0:00:04]}  gxf4 {[%clk 0:00:03]} 61. a7 {[%clk 0:00:05]}  f2+ {[%clk 0:00:04]} 62. Kd2 {[%clk 0:00:05]}  f1=Q {[%clk 0:00:04]} 63. a8=Q+ {[%clk 0:00:06]}  f3 {[%clk 0:00:04]} 64. Qe4 {[%clk 0:00:06]}  Qf2+ {[%clk 0:00:03]} 65. Kc3 {[%clk 0:00:06]}  Qe2 {[%clk 0:00:03]} 66. Qd5 {[%clk 0:00:05]}  Qe3+ {[%clk 0:00:03]} 67. Kc4 {[%clk 0:00:05]}  Kg3 {[%clk 0:00:03]} 68. b4 {[%clk 0:00:04]}  f2 {[%clk 0:00:03]} 69. Qd1 {[%clk 0:00:05]}  Qf4+ {[%clk 0:00:03]} 70. Kc5 {[%clk 0:00:04]}  f1=Q {[%clk 0:00:04]} 71. Qxf1 {[%clk 0:00:04]}  Qxf1 {[%clk 0:00:04]} 72. b5 {[%clk 0:00:05]}  Qf6 {[%clk 0:00:04]} 73. b6 {[%clk 0:00:05]}  Qd8 {[%clk 0:00:05]} 74. b7 {[%clk 0:00:05]}  Qb8 {[%clk 0:00:06]} 75. Kc6 {[%clk 0:00:05]}  Kh4 {[%clk 0:00:06]} 0-1


[Site "https://www.chess.com"]

[Event "Titled Tuesday Blitz July 05 Late 2022"]
[White "Martinez Alcantara, Jose Eduardo"]
[Black "Vasquez Schroeder, Rodrigo"]
[WhiteFideId "3805662"]
[BlackFideId "3400042"]
[WhiteElo "2703"]
[BlackElo "2567"]
[Result "1-0"]
[Round "07"]
[TimeControl "180+1"]
[Date "2022.07.05"]
[WhiteClock "0:00:07"]
[BlackClock "0:00:06"]

1. e4 {[%clk 0:03:00]}  c6 {[%clk 0:02:56]} 2. d4 {[%clk 0:03:00]}  d5 {[%clk 0:02:57]} 3. e5 {[%clk 0:03:01]}  Bf5 {[%clk 0:02:56]} 4. h4 {[%clk 0:03:01]}  h5 {[%clk 0:02:56]} 5. Bd3 {[%clk 0:03:02]}  Bxd3 {[%clk 0:02:54]} 6. Qxd3 {[%clk 0:03:03]}  Qa5+ {[%clk 0:02:50]} 7. b4 {[%clk 0:03:03]}  Qa6 {[%clk 0:02:49]} 8. e6 {[%clk 0:03:03]}  Qxd3 {[%clk 0:02:49]} 9. cxd3 {[%clk 0:03:04]}  Nh6 {[%clk 0:02:41]} 10. Bxh6 {[%clk 0:02:57]}  Rxh6 {[%clk 0:02:41]} 11. exf7+ {[%clk 0:02:58]}  Kxf7 {[%clk 0:02:41]} 12. Nf3 {[%clk 0:02:59]}  Nd7 {[%clk 0:02:41]} 13. Nbd2 {[%clk 0:02:46]}  e6 {[%clk 0:02:40]} 14. Rb1 {[%clk 0:02:45]}  Be7 {[%clk 0:02:27]} 15. O-O {[%clk 0:02:35]}  a6 {[%clk 0:02:07]} 16. Rfe1 {[%clk 0:02:31]}  Rhh8 {[%clk 0:02:03]} 17. g3 {[%clk 0:02:25]}  Bf6 {[%clk 0:02:02]} 18. Nb3 {[%clk 0:02:14]}  b6 {[%clk 0:01:52]} 19. Re3 {[%clk 0:02:02]}  Rhe8 {[%clk 0:01:48]} 20. Rbe1 {[%clk 0:01:59]}  Rac8 {[%clk 0:01:36]} 21. Kg2 {[%clk 0:01:23]}  c5 {[%clk 0:01:28]} 22. bxc5 {[%clk 0:01:22]}  bxc5 {[%clk 0:01:28]} 23. dxc5 {[%clk 0:01:22]}  Nxc5 {[%clk 0:01:28]} 24. Nbd4 {[%clk 0:01:15]}  Re7 {[%clk 0:01:19]} 25. Ng5+ {[%clk 0:01:05]}  Bxg5 {[%clk 0:01:18]} 26. hxg5 {[%clk 0:01:06]}  Ree8 {[%clk 0:01:05]} 27. Nf3 {[%clk 0:00:57]}  Nd7 {[%clk 0:01:01]} 28. d4 {[%clk 0:00:56]}  Rb8 {[%clk 0:00:51]} 29. R1e2 {[%clk 0:00:54]}  g6 {[%clk 0:00:49]} 30. Ra3 {[%clk 0:00:42]}  Rb6 {[%clk 0:00:36]} 31. Rc2 {[%clk 0:00:42]}  Ke7 {[%clk 0:00:27]} 32. Nh4 {[%clk 0:00:41]}  e5 {[%clk 0:00:23]} 33. dxe5 {[%clk 0:00:37]}  Nxe5 {[%clk 0:00:23]} 34. Ra5 {[%clk 0:00:34]}  Rd6 {[%clk 0:00:19]} 35. Rac5 {[%clk 0:00:24]}  Nc4 {[%clk 0:00:18]} 36. Rc7+ {[%clk 0:00:22]}  Kd8 {[%clk 0:00:18]} 37. Ra7 {[%clk 0:00:20]}  Ree6 {[%clk 0:00:19]} 38. Rc3 {[%clk 0:00:19]}  Kc8 {[%clk 0:00:19]} 39. Rg7 {[%clk 0:00:17]}  Rc6 {[%clk 0:00:18]} 40. Nf3 {[%clk 0:00:16]}  Red6 {[%clk 0:00:17]} 41. Nd4 {[%clk 0:00:12]}  Rc7 {[%clk 0:00:18]} 42. Rg8+ {[%clk 0:00:13]}  Kb7 {[%clk 0:00:16]} 43. Rb3+ {[%clk 0:00:13]}  Ka7 {[%clk 0:00:13]} 44. Rf8 {[%clk 0:00:12]}  Rb7 {[%clk 0:00:09]} 45. Rbf3 {[%clk 0:00:06]}  Ne5 {[%clk 0:00:07]} 46. R3f6 {[%clk 0:00:06]}  Rbd7 {[%clk 0:00:06]} 47. Re8 {[%clk 0:00:05]}  Nc4 {[%clk 0:00:05]} 48. Ree6 {[%clk 0:00:04]}  Rxe6 {[%clk 0:00:06]} 49. Rxe6 {[%clk 0:00:05]}  Rd6 {[%clk 0:00:06]} 50. Re7+ {[%clk 0:00:05]}  Kb6 {[%clk 0:00:05]} 51. f4 {[%clk 0:00:06]}  Kc5 {[%clk 0:00:05]} 52. Ne6+ {[%clk 0:00:06]}  Kb4 {[%clk 0:00:06]} 53. f5 {[%clk 0:00:07]}  gxf5 {[%clk 0:00:06]} 54. g6 {[%clk 0:00:08]}  Ne3+ {[%clk 0:00:05]} 55. Kg1 {[%clk 0:00:06]}  Ng4 {[%clk 0:00:06]} 56. g7 {[%clk 0:00:06]}  Nf6 {[%clk 0:00:06]} 57. Rf7 {[%clk 0:00:06]}  Ng8 {[%clk 0:00:05]} 58. Rf8 {[%clk 0:00:06]}  Rxe6 {[%clk 0:00:05]} 59. Rxg8 {[%clk 0:00:07]}  Rg6 {[%clk 0:00:06]} 60. Rb8+ {[%clk 0:00:07]} 1-0


[Site "https://www.chess.com"]